Workbook

Sheet 博士
A1: 2026届博士研究生毕业生专业信息一览表
A2: 校区 | B2: 就业方向（岗位） | C2: 学院 | D2: 一级学科 | E2: 二级学科 | F2: 人数 | G2: 总人数 | H2: 联系老师姓名 | I2: 联系老师电话 | J2: 计划实习时间
A3: 王城 | B3: 高校教师、中小学教师、文化产业、旅游管理及其他 | C3: 历史文化与旅游学院 | D3: 世界史 | E3: 世界史 | F3: 5 | G3: =SUM(F3) -> 5 | H3: 李杰 | I3: 13087925986 | J3: 面议
A4: 育才 | B4: 高校教师、中小学教师、行政、管理及其他 | C4: 马克思主义学院 | D4: 马克思主义理论 | E4: 党的建设 | F4: 6 | G4: =SUM(F4:F9) -> 30 | H4: 钟叶宽 | I4: 18178396698 | J4: 面议
D5: 马克思主义理论 | E5: 马克思主义发展史 | F5: 3
D6: 马克思主义理论 | E6: 马克思主义基本原理 | F6: 9
D7: 马克思主义理论 | E7: 马克思主义中国化研究 | F7: 3
D8: 马克思主义理论 | E8: 思想政治教育 | F8: 7
D9: 马克思主义理论 | E9: 中国近现代史基本问题研究 | F9: 2
B10: 高校教师、中小学教师、学前教育、特殊教育、心理健康教育管理及其他 | C10: 教育学部 | D10: 教育学 | E10: 高等教育学 | F10: 4 | G10: =SUM(F10:F14) -> 26 | H10: 皇甫科杰 邓晓莉 | I10: 18593273313 19121695896 | J10: 面议
D11: 教育学 | E11: 教育学原理 | F11: 6
D12: 教育学 | E12: 课程与教学论 | F12: 6
D13: 教育学 | E13: 民族文化与教育 | F13: 6
D14: 教育学 | E14: 学前教育学 | F14: 4
B15: 高校教师、中小学教师、软件开发、编程、信息安全及其他 | C15: 计算机科学与工程学院/软件学院/人工智能学院 | D15: 软件工程 | E15: 软件工程 | F15: 19 | G15: =SUM(F15) -> 19 | H15: 施林劼 | I15: 19907737211 | J15: 面议
B16: 高校教师、中小学教师、测控、 仪器制造及其他 | C16: 物理科学与技术学院 | D16: 物理学 | E16: 光学 | F16: 2 | G16: =SUM(F16:F19) -> 10 | H16: 张瑜洁 | I16: 15697736321 | J16: 面议
D17: 物理学 | E17: 理论物理 | F17: 2
D18: 物理学 | E18: 粒子物理与原子核物理 | F18: 3
D19: 物理学 | E19: 凝聚态物理 | F19: 3
B20: 高校教师、中小学教师、应用化学、生化、制药及其他 | C20: 化学与药学学院 | D20: 化学 | E20: 分析化学 | F20: 5 | G20: =SUM(F20:F25) -> 22 | H20: 卢洁 | I20: 13978306530 | J20: 面议
D21: 化学 | E21: 高分子化学与物理 | F21: 0
D22: 化学 | E22: 化学生物学 | F22: 3
D23: 化学 | E23: 无机化学 | F23: 3
D24: 化学 | E24: 物理化学 | F24: 7
D25: 化学 | E25: 有机化学 | F25: 4
A26: 雁山 | B26: 高校教师、中小学教师、健康管理、体育、行政及其他， | C26: 体育与健康学院 | D26: 体育学 | E26: 体育人文社会学 | F26: 5 | G26: =SUM(F26:F28) -> 12 | H26: 邓玉超 | I26: 13737727156 | J26: 面议
D27: 体育学 | E27: 体育教育训练学 | F27: 3
D28: 体育学 | E28: 运动人体科学 | F28: 4
B29: 高校教师、中小学教师、文秘、新闻、编辑、新媒体及其他 | C29: 文学院 | D29: 中国语言文学 | E29: 汉语言文字学 | F29: 3 | G29: =SUM(F29:F33) -> 16 | H29: 毕权飞 | I29: 15577385608 | J29: 面议
D30: 中国语言文学 | E30: 文艺学 | F30: 2
D31: 中国语言文学 | E31: 中国古代文学 | F31: 5
D32: 中国语言文学 | E32: 中国少数民族语言文学 | F32: 3
D33: 中国语言文学 | E33: 中国现当代文学 | F33: 3

Sheet 硕士
A1: 广西师范大学2026届硕士研究生毕业生专业信息一览表
A2: 校区 | B2: 就业方向（岗位） | C2: 学院 | D2: 一级学科 | E2: 二级学科 | F2: 人数 | G2: 总人数 | H2: 联系老师姓名 | I2: 联系电话号码 | J2: 计划实习时间
A3: 王城 | B3: 高校教师，中小学教师、文化产业、旅游管理及其他 | C3: 历史文化与旅游学院 | D3: 教育学 | E3: 课程与教学论 | F3: 3 | G3: =SUM(F3:F8) -> 206 | H3: 李杰 | I3: 13087925986 | J3: 2025年1月-2025年12月
D4: 世界史 | E4: 世界史 | F4: 24
D5: 教育学 | E5: 学科教学（历史）* | F5: 30 | J5: 2025年7月-2025年12月
D6: 中国史 | E6: 中国史 | F6: 22 | J6: 2025年1月-2025年12月
D7: 管理学 | E7: 旅游管理* | F7: 106 | H7: 牛苗苗 | I7: 13978396887 | J7: 2025年1月-2025年12月
D8: 历史学 | E8: 文物与博物馆* | F8: 21
A9: 育才 | B9: 高校教师，人工智能、软件开发、编程、信息安全及其他 | C9: 计算机科学与工程学院/软件学院/人工智能学院 | D9: 计算机科学与技术 | E9: 计算机科学与技术 | F9: 24 | G9: =SUM(F9:F13) -> 144 | H9: 施林劼 | I9: 19907737211 | J9: 面议
D10: 软件工程 | E10: 软件工程 | F10: 37
D11: 电子信息 | E11: 计算机技术* | F11: 24
D12: 电子信息 | E12: 软件工程* | F12: 47
D13: 电子信息 | E13: 大数据技术与工程* | F13: 12
B14: 电子、通信、自动化、数字化、人工智能，以及中小学、职业技术学校教师 | C14: 电子与信息工程学院/集成电路学院 | D14: 电子科学与技术 | E14: 电子科学与技术 | F14: 23 | G14: =SUM(F14:F18) -> 108 | H14: 宾康武 | I14: 18377335542 | J14: 2025年9月-2025年12月
D15: 电子信息 | E15: 新一代电子信息技术(含量子技术等) | F15: 47
D16: 电子科学与技术 | E16: 集成电路工程 | F16: 12
D17: 电子科学与技术 | E17: 人工智能 | F17: 16
D18: 电子信息 | E18: 通信工程(含宽带网络、移动通信等) | F18: 10
B19: 高校教师，中小学教师、测控、仪器制造及其他 | C19: 物理科学与技术学院 | D19: 教育学 | E19: 课程与教学论 | F19: 1 | G19: =SUM(F19:F23) -> 114 | H19: 张瑜洁 | I19: 15697736321 | J19: 2025年9月-2026年1月
D20: 物理学 | E20: 物理学 | F20: 73
D21: 系统科学 | E21: 系统科学 | F21: 9
D22: 系统科学 | E22: 材料与化工 | F22: 6
D23: 教育学 | E23: 学科教学（物理）* | F23: 25
B24: 高校教师，中小学教师、应用化学、生化、制药及其他 | C24: 化学与药学学院 | D24: 化学 | E24: 化学 | F24: 146 | G24: =SUM(F24:F28) -> 215 | H24: 吴垚 | I24: 17784372241 | J24: 2025年9月-2026年1月
D25: 化学工程与技术 | E25: 化学工程与技术 | F25: 14
D26: 教育学 | E26: 课程与教学论 | F26: 1
D27: 生物与医药 | E27: 生物与医药 | F27: 43
D28: 教育学 | E28: 学科教学（化学）* | F28: 11
B29: 中高职教师、平面广告及工艺品设计、文创产品设计、美术编辑、家具装饰设计、室内软装设计、设计策划及其他 | C29: 职业技术师范学院 | D29: 教育 | E29: 职业技术教育* | F29: 71 | G29: =SUM(F29) -> 71 | H29: 李燕 | I29: 18589946252 | J29: 2025年9月-2025年12月
B30: 高校教师，中小学教师、图书馆等其他 | C30: 图书情报研究所 | D30: 图书情报 | E30: 图书情报 | F30: 18 | G30: =SUM(F30) -> 18 | H30: 欧燕 | I30: 18780087037 | J30: 面议
B31: 高校教师，中小学教师等其他 | C31: 科学教育研究所 | D31: 教育学 | E31: 科学教育 | F31: 1 | G31: =SUM(F31:F32) -> 21 | H31: 张瑜洁 | I31: 15697736321 | J31: 2025年9月-2026年1月
D32: 教育 | E32: 科学与技术教育* | F32: 20
B33: 高校教师，经济、金融、营销、财务、人力管理及其他 | C33: 经济管理学院 | D33: 工商管理 | E33: 工商管理*（MBA） | F33: 142 | G33: =SUM(F33) -> 142 | H33: 于常亮 | I33: 18593939003 | J33: 2025年9月-2025年12月
A34: 雁山 | B34: 高校教师，中小学教师、文秘、新闻、编辑、新媒体及其他 | C34: 文学院/新闻与传播学院 | D34: 文学 | E34: 出版* | F34: 26 | G34: =SUM(F34:F39) -> 219 | H34: 苏梦媛 | I34: 15538171469 | J34: 2025年7月-2025年12月
D35: 教育学 | E35: 国际中文教育* | F35: 49
D36: 教育学 | E36: 学科教学（语文）* | F36: 43
D37: 教育学 | E37: 课程与教学论 | F37: 4 | H37: 黄瑶 | I37: 15687629285
D38: 哲学 | E38: 美学 | F38: 4
D39: 中国语言文学 | E39: 中国语言文学 | F39: 93
B40: 高校教师，中小学教师、行政、管理及其他 | C40: 马克思主义学院 | D40: 教育学 | E40: 课程与教学论 | F40: 2 | G40: =SUM(F40:F44) -> 191 | H40: 叶茗媛 | I40: 18875049740 | J40: 2025年9月-2025年12月
D41: 马克思主义理论 | E41: 马克思主义理论 | F41: 132
D42: 教育学 | E42: 学科教学（思政）* | F42: 35
D43: 哲学 | E43: 哲学 | F43: 21
D44: 理论经济学 | E44: 政治经济学 | F44: 1
B45: 高校教师，司法、律师、法务及其他 | C45: 法学院/律师学院 | D45: 法学 | E45: 法学 | F45: 66 | G45: =SUM(F45,F46,F47) -> 186 | H45: 钟婉莹 | I45: 15078362864 | J45: 面议
D46: 法律 | E46: 法律（法学）* | F46: 51 | J46: 2025年7月-2025年9月
D47: 法律 | E47: 法律（非法学）* | F47: 69 | J47: 2025年4月-2025年8月
B48: 高校教师，管理、行政、文员、社工及其他 | C48: 政治与公共管理学院 | D48: 管理学 | E48: 公共管理* | F48: 124 | G48: =SUM(F48:F53) -> 198 | H48: 赵思嘉 | I48: 15677353669 | J48: 2025年7月-2026年1月
D49: 公共管理学 | E49: 社会保障 | F49: 15
D50: 社会工作 | E50: 社会工作* | F50: 31
D51: 公共管理学 | E51: 社会医学与卫生事业管理 | F51: 3
D52: 公共管理学 | E52: 行政管理 | F52: 18
D53: 政治学 | E53: 政治学 | F53: 7
B54: 高校教师，经济、金融、营销、财务、人力管理及其他 | C54: 经济管理学院 | D54: 工商管理 | E54: 工商管理学 | F54: 35 | G54: =SUM(F54:F57) -> 110 | H54: 何才超 | I54: 13978303130 | J54: 2025年9月-2025年12月
D55: 经济学 | E55: 金融* | F55: 37
D56: 理论经济学 | E56: 理论经济学 | F56: 9
D57: 应用经济学 | E57: 应用经济学 | F57: 29
B58: 高校教师，中小学教师、翻译、国际贸易、电子商务、行政、文员及其他 | C58: 外国语学院 | D58: 文学 | E58: 朝鲜语与笔译* | F58: 10 | G58: =SUM(F58:F64) -> 253 | H58: 王一菲 | I58: 19543620401 | J58: 2025年9月-2025年12月
D59: 教育学 | E59: 课程与教学论 | F59: 17
D60: 文学 | E60: 日语笔译* | F60: 12
D61: 外国语言文学 | E61: 外国语言文学 | F61: 44
D62: 教育学 | E62: 学科教学（英语）* | F62: 118
D63: 文学 | E63: 英语笔译* | F63: 46
D64: 文学 | E64: 英语口译* | F64: 6
B65: 高校教师，中小学教师、学前教育、特殊教育、心理健康教育管理及其他 | C65: 教育学部/教师教育学院 | D65: 应用心理 | E65: 应用心理 | F65: 32 | G65: =SUM(F65:F72) -> 324 | H65: 姚卉 | I65: 15277399578 | J65: 2025年9月-2025年12月
D66: 公共管理学 | E66: 教育经济与管理 | F66: 21
D67: 教育学 | E67: 教育学 | F67: 121
D68: 心理学 | E68: 心理学 | F68: 29
D69: 教育 | E69: 学前教育* | F69: 44 | H69: 张怡帆 | I69: 18878383203
D70: 教育 | E70: 现代教育技术* | F70: 19
D71: 教育 | E71: 心理健康教育* | F71: 29
D72: 管理学 | E72: 教育管理* | F72: 29
A73: 雁山 | B73: 高校教师，中小学教师、信息统计、数据处理计算、大数据及其他 | C73: 数学与统计学院 | D73: 教育学 | E73: 课程与教学论 | F73: 5 | G73: =SUM(F73:F77) -> 155 | H73: 韦桂娥 | I73: 18278376839 | J73: 2025年9月-2025年12月
D74: 数学 | E74: 数学 | F74: 38
D75: 统计学 | E75: 统计学 | F75: 22
D76: 教育学 | E76: 学科教学（数学）* | F76: 44
D77: 经济学 | E77: 应用统计* | F77: 46
B78: 高校教师，中小学教师、环保、环境及其他 | C78: 环境与资源学院 | D78: 环境科学与工程 | E78: 环境科学与工程 | F78: 45 | G78: =SUM(F78:F79) -> 72 | H78: 汤明旭 | I78: 18907838406 | J78: 2025年7月-2025年9月
D79: 教育学 | E79: 学科教学（地理）* | F79: 27 | H79: 覃彩连 | I79: 17877350990 | J79: 2025年9月-2025年12月
B80: 高校教师，中小学教师、生物技术、医药、环境生态及其他 | C80: 生命科学学院 | D80: 教育学 | E80: 课程与教学论 | F80: 0 | G80: =SUM(F80:F84) -> 157 | H80: 陈连真 | I80: 18276691114 | J80: 面议
D81: 林业 | E81: 林业 | F81: 28
D82: 生态学 | E82: 生态学 | F82: 42
D83: 生物学 | E83: 生物学 | F83: 63
D84: 教育学 | E84: 学科教学（生物）* | F84: 24
A85: 雁山 | B85: 高校教师，中小学教师、健康管理、体育、行政及其他， | C85: 体育与健康学院 | D85: 体育学 | E85: 体育学 | F85: 44 | G85: =SUM(F85:F88) -> 135 | H85: 邓玉超 | I85: 13737727156 | J85: 面议
D86: 体育 | E86: 体育教学 | F86: 58
D87: 体育 | E87: 运动训练 | F87: 22
D88: 体育 | E88: 社会体育指导 | F88: 11
B89: 高校教师，中小学教师、艺术、音乐、舞蹈、其他 | C89: 音乐学院 | D89: 舞蹈 | E89: 舞蹈 | F89: 12 | G89: =SUM(F89:F92) -> 67 | H89: 覃代楷 | I89: 13807737694 | J89: 面议
D90: 教育学 | E90: 学科教学（音乐）* | F90: 1
D91: 音乐 | E91: 音乐 | F91: 40
D92: 音乐与舞蹈学 | E92: 音乐与舞蹈学 | F92: 14
B93: 高校教师，中小学教师、书法、美术、设计、管理、其他 | C93: 美术学院 | D93: 教育学 | E93: 课程与教学论 | F93: 0 | G93: =SUM(F93:F96) -> 95 | H93: 潘冬梅 | I93: 13557733362 | J93: 面议
D94: 美术 | E94: 美术 | F94: 63
D95: 美术学 | E95: 美术学 | F95: 25
D96: 教育学 | E96: 学科教学（美术）* | F96: 7
B97: 高校教师，中小学教师、广告和环境设计、产品包装、影视动画、服装服饰、视觉传达设计、数字媒体艺术、动画及其他 | C97: 设计学院 | D97: 设计学 | E97: 设计学 | F97: 24 | G97: 93 | H97: 蒋蝶 | I97: 15673427294 | J97: 面议
D98: 艺术设计 | E98: 艺术设计 | F98: 69
A99: 注：专业学位类别按其名称授予学位。名称后加“*”的可授硕士专业学位，其他可授硕士、博士专业学位。
